bitfinex-derivatives/quotes_BTCF0:USTF0_20251030
["timestamp","ask_amount","ask_price","bid_price","bid_amount"]
[1761828773710,0.3618,108490.0,108480.0,0.05885]
[1761828773916,0.05,108490.0,108480.0,0.05885]
[1761828774117,0.68628,108500.0,108490.0,0.04606]
[1761828774310,0.5408,108500.0,108490.0,0.04606]
[1761828775513,0.7708,108500.0,108490.0,0.04606]
[1761828775709,0.8757706,108500.0,108490.0,0.04706]
[1761828776220,1.50674221,108500.0,108490.0,0.001]
[1761828776714,1.31674221,108500.0,108490.0,0.001]
[1761828777109,0.8257706,108500.0,108490.0,0.04706]
[1761828777315,0.6487706,108500.0,108490.0,0.04706]
[1761828777510,0.5488,108500.0,108490.0,0.04706]
[1761828778414,0.5288,108500.0,108490.0,0.04706]
[1761828778722,0.5488,108500.0,108490.0,0.04706]
[1761828778905,0.5488,108500.0,108490.0,0.04982]
[1761828779105,0.168,108500.0,108490.0,0.04706]
[1761828779304,0.168,108500.0,108490.0,0.29107034]
[1761828779516,0.008,108500.0,108490.0,0.65187034]
[1761828779816,0.008,108500.0,108490.0,0.74681344]
[1761828780306,0.008,108500.0,108490.0,1.13584183]
[1761828780506,0.4254506,108520.0,108510.0,0.04606]
[1761828780702,0.5454506,108520.0,108510.0,0.04606]
[1761828780902,0.3608,108530.0,108520.0,0.04518]
[1761828781103,0.3608,108530.0,108520.0,0.05866]
[1761828781319,0.3608,108540.0,108530.0,0.04458]
[1761828781516,0.3808,108540.0,108530.0,0.04458]
[1761828781713,0.02,108540.0,108530.0,0.04458]
[1761828782415,0.37014139,108550.0,108540.0,0.05806]
[1761828782416,0.43320827,108550.0,108540.0,0.05806]
[1761828782602,1.52417988,108550.0,108530.0,0.001]
[1761828782802,0.89997161,108540.0,108530.0,0.001]
[1761828783008,1.78414812,108540.0,108530.0,0.001]
[1761828783208,1.79241768,108540.0,108530.0,0.001]
[1761828783514,1.92495155,108540.0,108520.0,0.01348]
[1761828783818,0.71244875,108530.0,108520.0,0.01348]
[1761828784010,1.0098,108530.0,108520.0,0.01348]
[1761828784316,0.7198,108530.0,108520.0,0.05806]
[1761828784515,0.9198,108530.0,108520.0,0.05806]
[1761828784820,1.2997706,108530.0,108520.0,0.05806]
[1761828785122,1.65241935,108530.0,108520.0,0.01348]
[1761828785511,0.8197706,108530.0,108520.0,0.03583]
[1761828785711,0.8197706,108530.0,108520.0,0.01348]
[1761828785712,1.2337706,108530.0,108520.0,0.01348]
[1761828785914,0.9437706,108530.0,108520.0,0.05806]
[1761828786224,0.4378,108530.0,108520.0,0.05806]
[1761828786407,0.92044875,108530.0,108520.0,0.01348]
[1761828786716,1.0078,108530.0,108520.0,0.01348]
[1761828786920,1.0078,108530.0,108520.0,0.05806]
[1761828787417,1.1077706,108530.0,108520.0,0.05806]
[1761828788620,1.1077706,108530.0,108520.0,0.01348]
[1761828788811,1.46041935,108530.0,108520.0,0.01348]
[1761828789226,1.70041935,108530.0,108520.0,0.01348]
[1761828790926,1.46041935,108530.0,108520.0,0.01348]
[1761828791422,1.59041935,108530.0,108520.0,0.01348]
[1761828791618,1.79041935,108530.0,108500.0,0.05737]
[1761828791818,0.3608,108510.0,108500.0,0.05737]
[1761828792033,0.4608,108510.0,108500.0,0.05737]
[1761828792217,0.9516,108510.0,108500.0,0.05737]
[1761828792417,0.7216,108510.0,108500.0,0.05737]
[1761828792725,1.42424875,108510.0,108500.0,0.05737]
[1761828792920,1.1715706,108510.0,108500.0,0.05737]
[1761828793125,1.3915706,108510.0,108500.0,0.01279]
[1761828793324,1.3915706,108510.0,108500.0,0.03514]
[1761828793526,1.6955706,108510.0,108500.0,0.03514]
[1761828793824,2.05097935,108510.0,108480.0,0.05697568]
[1761828794031,1.07424875,108490.0,108480.0,0.01288568]
[1761828794328,1.95424875,108490.0,108480.0,0.01288568]
[1761828794927,2.05697935,108490.0,108480.0,0.01288568]
[1761828795125,2.05697935,108490.0,108480.0,0.00109568]
[1761828795521,2.65697935,108490.0,108480.0,1e-08]
[1761828795720,2.05697935,108490.0,108460.0,0.01348]
[1761828796023,0.7216,108470.0,108460.0,0.03478]
[1761828796227,1.0116,108470.0,108460.0,0.03478]
[1761828796429,0.6508,108470.0,108460.0,0.03478]
[1761828796615,0.65089843,108470.0,108460.0,0.01348]
[1761828796814,0.65089843,108470.0,108460.0,0.03978]
[1761828797027,0.75086903,108470.0,108460.0,0.03978]
[1761828797422,1.03086903,108470.0,108460.0,0.03978]
[1761828797630,1.51166903,108470.0,108460.0,0.03978]
[1761828797927,1.51166903,108470.0,108460.0,0.01848]
[1761828798123,1.51166903,108470.0,108460.0,0.01448]
[1761828798323,1.51166903,108470.0,108460.0,0.01648]
[1761828798518,1.51166903,108470.0,108460.0,0.01748]
[1761828798724,1.67166903,108470.0,108460.0,0.01748]
[1761828799232,1.67166903,108470.0,108440.0,0.05757]
[1761828799233,2.03649942,108470.0,108440.0,0.05757]
[1761828799422,0.3608,108450.0,108440.0,0.05757]
[1761828799623,0.38086817,108450.0,108440.0,0.05757]
[1761828800434,0.48083877,108450.0,108440.0,0.05757]
[1761828801023,0.70626817,108450.0,108440.0,0.05757]
[1761828801334,0.70626817,108450.0,108440.0,0.06357]
[1761828801924,0.70826817,108450.0,108440.0,0.05757]
[1761828802225,0.70926817,108450.0,108440.0,0.05757]
[1761828802425,0.70826817,108450.0,108440.0,0.05757]
[1761828802829,2.12171692,108450.0,108440.0,0.01348]
[1761828803035,2.22171692,108450.0,108440.0,0.01348]
[1761828803226,1.94171692,108450.0,108440.0,0.05757]
[1761828803530,1.18907877,108450.0,108440.0,0.05757]
[1761828803928,0.86363877,108450.0,108440.0,0.05757]
[1761828804131,1.09010817,108450.0,108440.0,0.05757]
[1761828804435,0.85930817,108450.0,108440.0,0.03478]
[1761828804736,1.95195692,108450.0,108440.0,0.03478]
[1761828804944,1.95195692,108450.0,108440.0,0.01348]
[1761828805243,1.95471692,108450.0,108440.0,0.01348]
[1761828805426,1.95195692,108450.0,108440.0,0.01348]
[1761828805622,1.95195692,108450.0,108420.0,0.01325]
[1761828805623,2.05192752,108450.0,108420.0,0.05734]
[1761828805826,0.3608,108430.0,108420.0,0.05734]
[1761828806037,0.70633843,108430.0,108420.0,0.05734]
[1761828806235,0.72633843,108430.0,108420.0,0.05734]
[1761828806632,0.75633843,108430.0,108420.0,0.05734]
[1761828806835,0.44550903,108430.0,108420.0,0.05734]
[1761828807034,0.72633843,108430.0,108420.0,0.05734]
[1761828807230,1.01633843,108430.0,108420.0,0.05734]
[1761828807543,1.01633843,108430.0,108420.0,0.05834]
[1761828807934,0.75633843,108430.0,108420.0,0.05834]
[1761828808143,0.88633843,108430.0,108420.0,0.05834]
[1761828808333,0.51089843,108430.0,108420.0,0.05834]
[1761828808636,0.68637843,108430.0,108420.0,0.05834]
[1761828808836,0.68937843,108430.0,108420.0,0.05734]
[1761828809037,0.36489843,108430.0,108420.0,0.41274875]
[1761828809232,0.36489843,108430.0,108420.0,0.05734]
[1761828810432,0.36089843,108430.0,108420.0,0.05834]
[1761828810739,0.38289843,108430.0,108420.0,0.05834]
[1761828810940,0.43289843,108430.0,108420.0,0.05834]
[1761828811439,0.43089843,108430.0,108420.0,0.05834]
[1761828812037,0.43189843,108430.0,108420.0,0.05734]
[1761828812235,0.43489843,108430.0,108420.0,0.05734]
[1761828812435,0.76041843,108430.0,108420.0,0.05734]
[1761828812632,0.74041843,108430.0,108420.0,0.05734]
[1761828812839,0.75041843,108430.0,108420.0,0.05734]
[1761828813039,0.36489843,108430.0,108420.0,0.0601]
[1761828813245,0.36489843,108430.0,108420.0,1.01274875]
[1761828813637,0.36489843,108430.0,108420.0,0.6601]
[1761828813835,0.36489843,108430.0,108420.0,0.05734]
[1761828814140,9.843e-05,108430.0,108420.0,0.05734]
[1761828814341,0.00209843,108430.0,108420.0,0.0601]
[1761828815137,0.00209843,108430.0,108420.0,0.4209]
[1761828816138,0.00209843,108430.0,108420.0,0.86579155]
[1761828816442,0.00209843,108430.0,108420.0,0.77354875]
[1761828816650,0.00209843,108430.0,108420.0,0.41814]
[1761828817046,0.00209843,108430.0,108420.0,0.4209]
[1761828817347,0.00209843,108430.0,108420.0,1.46579155]
[1761828817745,0.4607706,108460.0,108450.0,0.04552]
[1761828818050,0.8362506,108460.0,108450.0,0.04552]
[1761828818249,0.76628,108460.0,108450.0,0.04552]
[1761828818445,0.35548,108460.0,108450.0,0.04552]
[1761828818645,0.03,108460.0,108450.0,0.40632]
[1761828818838,0.03,108460.0,108450.0,0.04552]
[1761828819447,0.033,108460.0,108450.0,0.04552]
[1761828820151,0.039,108460.0,108450.0,0.04652]
[1761828820852,0.039,108460.0,108450.0,0.40732]
[1761828821042,0.039,108460.0,108450.0,0.04652]
[1761828821443,0.4198,108460.0,108450.0,0.04652]
[1761828821652,0.3998,108460.0,108450.0,0.04652]
[1761828821953,0.039,108460.0,108450.0,0.40732]
[1761828822146,0.039,108460.0,108450.0,0.04652]
[1761828823144,0.039,108460.0,108450.0,0.40732]
[1761828823355,0.059,108460.0,108450.0,0.04652]
[1761828823754,0.039,108460.0,108450.0,0.04652]
[1761828824154,0.039,108460.0,108450.0,0.07964616]
[1761828824854,0.007,108460.0,108450.0,0.88707211]
[1761828825056,0.007,108460.0,108450.0,0.53442336]
[1761828825256,0.007,108460.0,108450.0,0.88707211]
[1761828825657,0.006,108460.0,108450.0,0.88707211]
[1761828825857,0.006,108460.0,108450.0,0.53442336]
[1761828826059,0.006,108460.0,108450.0,0.48907733]
[1761828826556,0.004,108460.0,108450.0,0.48907733]
[1761828826755,0.004,108460.0,108450.0,0.12827733]
[1761828826958,0.004,108460.0,108450.0,0.07859148]
[1761828827153,0.074,108460.0,108450.0,0.07859148]
[1761828827356,0.074,108460.0,108450.0,0.04552]
[1761828828163,0.4348,108460.0,108450.0,0.04552]
[1761828829064,0.4348,108460.0,108450.0,0.02318]
[1761828829362,0.4348,108460.0,108450.0,0.04552]
[1761828829553,0.4248,108460.0,108450.0,0.04552]
[1761828830053,0.3848,108460.0,108450.0,0.04552]
[1761828830362,0.024,108460.0,108450.0,0.04552]
[1761828830661,0.3848,108460.0,108450.0,0.04552]
[1761828831164,0.024,108460.0,108450.0,0.04552]
[1761828831363,0.3848,108460.0,108450.0,0.04552]
[1761828831958,0.024,108460.0,108450.0,0.04552]
[1761828832566,0.044,108460.0,108450.0,0.04552]
[1761828833069,0.074,108460.0,108450.0,0.04552]
[1761828833262,0.234,108460.0,108450.0,0.04552]
[1761828833659,0.044,108460.0,108450.0,0.04552]
[1761828834059,0.4048,108460.0,108450.0,0.04552]
[1761828835765,0.3848,108460.0,108450.0,0.04552]
[1761828836069,0.024,108460.0,108450.0,0.04552]
[1761828836467,0.004,108460.0,108450.0,0.75896875]
[1761828836668,0.004,108460.0,108450.0,0.76172875]
[1761828836859,0.004,108460.0,108450.0,0.88701763]
[1761828838361,0.024,108460.0,108450.0,0.43939148]
[1761828841271,0.025,108460.0,108450.0,0.07859148]
[1761828841469,0.025,108460.0,108450.0,0.43939148]
[1761828841772,0.005,108460.0,108450.0,0.43939148]
[1761828842161,0.002,108460.0,108450.0,0.43939148]
[1761828842473,0.006,108460.0,108450.0,0.43939148]
[1761828842663,0.006,108460.0,108450.0,0.53160888]
[1761828842972,0.006,108460.0,108450.0,0.79480023]
[1761828843168,0.006,108460.0,108450.0,0.88701763]
[1761828843368,0.3608,108480.0,108470.0,0.04496]
[1761828843565,0.76078116,108490.0,108480.0,0.05799]
[1761828843761,0.90078116,108490.0,108480.0,0.05799]
[1761828844158,0.46532,108490.0,108480.0,0.05799]
[1761828844358,0.4545264,108490.0,108480.0,0.05799]
[1761828844563,0.12,108490.0,108480.0,0.44374597]
[1761828844760,0.3608,108500.0,108490.0,0.04451]
[1761828844964,0.7908,108500.0,108490.0,0.04451]
[1761828845172,0.7608,108500.0,108490.0,0.04451]
[1761828845370,0.4908,108500.0,108490.0,0.04451]
[1761828845573,0.7508,108500.0,108490.0,0.04451]
[1761828845777,1.00123646,108500.0,108490.0,0.04451]
[1761828845980,1.00923646,108500.0,108490.0,0.04551]
[1761828846177,0.80801933,108500.0,108490.0,0.04551]
[1761828846978,0.52801933,108500.0,108490.0,0.04551]
[1761828847168,0.15221933,108500.0,108490.0,0.04551]
[1761828847369,0.15221933,108500.0,108490.0,0.25594646]
[1761828847573,0.13221933,108500.0,108490.0,0.61674646]
[1761828847772,0.13221933,108500.0,108490.0,0.28905368]
[1761828847971,0.013,108500.0,108490.0,0.28905368]
[1761828848170,0.013,108500.0,108490.0,0.64985368]
[1761828848366,0.013,108500.0,108490.0,0.75402237]
[1761828848776,0.013,108500.0,108490.0,0.76781598]
[1761828848976,0.013,108500.0,108490.0,0.66916729]
[1761828849274,0.033,108500.0,108490.0,0.07856044]
[1761828849469,0.043,108500.0,108490.0,0.04551]
[1761828849669,0.4038,108500.0,108490.0,0.04551]
[1761828850469,0.4338,108500.0,108490.0,0.04551]
[1761828850672,0.4038,108500.0,108490.0,0.04551]
[1761828851863,0.709,108500.0,108490.0,0.04551]
[1761828852171,0.729,108500.0,108490.0,0.04551]
[1761828852376,0.4038,108500.0,108490.0,0.04551]
[1761828852584,0.073,108500.0,108490.0,0.04551]
[1761828852876,0.4038,108500.0,108490.0,0.04551]
[1761828853076,0.3938,108500.0,108490.0,0.04551]
[1761828853976,0.013,108500.0,108490.0,0.61674646]
[1761828854179,0.013,108500.0,108490.0,0.25594646]
[1761828854473,0.013,108500.0,108490.0,0.61674646]
[1761828854679,0.013,108500.0,108490.0,0.25594646]
[1761828855265,0.013,108500.0,108490.0,0.04551]
[1761828855469,0.3938,108500.0,108490.0,0.04551]
[1761828855976,0.3738,108500.0,108490.0,0.04551]
[1761828856174,0.4238,108500.0,108490.0,0.04551]
[1761828856375,0.91939646,108500.0,108490.0,0.02373]
[1761828856576,1.83936706,108500.0,108490.0,0.001]
[1761828856972,1.84212706,108500.0,108480.0,0.01348]
[1761828857274,0.57123646,108490.0,108480.0,0.01348]
[1761828857479,2.03123646,108490.0,108460.0,0.05772]
[1761828857679,0.3608,108470.0,108460.0,0.05772]
[1761828857872,0.6208,108470.0,108460.0,0.05772]
[1761828858179,0.5908,108470.0,108460.0,0.05772]
[1761828858574,0.5708,108470.0,108460.0,0.05772]
[1761828859174,0.5728,108470.0,108460.0,0.05772]
[1761828859376,0.212,108470.0,108460.0,0.05772]
[1761828859574,0.212,108470.0,108460.0,0.41852]
[1761828859772,0.212,108470.0,108460.0,0.05772]
[1761828859967,0.015,108470.0,108460.0,0.05772]
[1761828860384,0.005,108470.0,108460.0,0.05772]
[1761828860770,0.005,108470.0,108460.0,0.62895646]
[1761828860975,0.005,108470.0,108460.0,0.6620069]
[1761828861673,0.005,108470.0,108460.0,0.6647669]
[1761828861873,0.005,108470.0,108460.0,0.6620069]
[1761828862881,0.035,108470.0,108460.0,0.45157044]
[1761828863075,1.00096,108470.0,108460.0,0.05772]
[1761828863482,1.02096,108470.0,108460.0,0.05772]
[1761828863674,0.75096,108470.0,108460.0,0.05772]
[1761828863984,0.73096,108470.0,108460.0,0.05772]
[1761828864286,0.4058,108470.0,108460.0,0.26815646]
[1761828864581,0.045,108470.0,108460.0,0.05772]
[1761828866280,0.4058,108470.0,108460.0,0.05772]
[1761828866678,0.4258,108470.0,108460.0,0.05772]
[1761828866982,1.33620706,108470.0,108460.0,0.01348]
[1761828867281,1.3257706,108470.0,108460.0,0.05772]
[1761828867671,0.6258,108470.0,108460.0,0.05772]
[1761828868780,0.6058,108470.0,108460.0,0.05772]
[1761828868990,1.16623646,108470.0,108460.0,0.01348]
[1761828869683,0.9558,108470.0,108460.0,0.01348]
[1761828870086,1.3457706,108470.0,108460.0,0.01348]
[1761828870282,1.55620706,108470.0,108460.0,0.01348]
[1761828870871,1.3457706,108470.0,108460.0,0.01348]
[1761828871586,1.1957706,108470.0,108460.0,0.01348]
[1761828872688,1.3257706,108470.0,108460.0,0.01348]
[1761828873184,1.53620706,108470.0,108460.0,0.01348]
[1761828874284,1.3257706,108470.0,108460.0,0.01348]
[1761828874488,1.53620706,108470.0,108460.0,0.01348]
[1761828874781,0.7057706,108470.0,108460.0,0.05672]
[1761828874984,0.95096,108470.0,108460.0,0.05672]
[1761828876278,0.6258,108470.0,108460.0,0.05672]
[1761828876480,0.57016,108470.0,108460.0,0.05672]
[1761828876783,0.93096,108470.0,108460.0,0.05672]
[1761828876981,0.95096,108470.0,108460.0,0.05672]
[1761828877881,0.74096,108470.0,108460.0,0.05672]
[1761828878089,0.38016,108470.0,108460.0,0.05672]
[1761828878587,0.74096,108470.0,108460.0,0.05672]
[1761828879189,0.035,108470.0,108460.0,0.26715646]
[1761828879388,0.035,108470.0,108460.0,0.62795646]
[1761828879389,0.36012,108470.0,108460.0,0.62795646]
[1761828879693,0.36012,108470.0,108460.0,0.26715646]
[1761828879992,0.005,108470.0,108460.0,0.6610069]
[1761828880181,0.005,108470.0,108460.0,0.3002069]
[1761828880376,0.035,108470.0,108460.0,0.08977044]
[1761828880790,0.055,108470.0,108460.0,0.08977044]
[1761828880992,0.035,108470.0,108460.0,0.45057044]
[1761828881290,0.055,108470.0,108460.0,0.08977044]
[1761828882092,0.055,108470.0,108460.0,0.05672]
[1761828882286,0.035,108470.0,108460.0,0.05672]
[1761828882489,0.055,108470.0,108460.0,0.08977044]
[1761828882686,0.055,108470.0,108460.0,0.05672]
[1761828883085,0.4158,108470.0,108460.0,0.05672]
[1761828883486,0.4458,108470.0,108460.0,0.05672]
[1761828884191,0.3958,108470.0,108460.0,0.08977044]
[1761828884395,0.4158,108470.0,108460.0,0.08977044]
[1761828885591,0.3958,108470.0,108460.0,0.08977044]
[1761828885790,0.035,108470.0,108460.0,0.08977044]
[1761828886087,0.035,108470.0,108460.0,0.45057044]
[1761828886494,0.005,108470.0,108460.0,0.67761729]
[1761828888191,0.005,108470.0,108460.0,0.46718083]
[1761828889502,0.045,108470.0,108460.0,0.46718083]
[1761828890109,0.4058,108470.0,108460.0,0.08986088]
[1761828890313,0.99084,108470.0,108460.0,0.08986088]
[1761828893509,0.97084,108470.0,108460.0,0.08986088]
[1761828893812,0.99084,108470.0,108460.0,0.08686263]
[1761828894111,0.77084,108470.0,108460.0,0.08686263]
[1761828894710,0.79084,108470.0,108460.0,0.08686263]
[1761828895108,0.41004,108470.0,108460.0,0.08686263]
[1761828895415,0.79084,108470.0,108460.0,0.08686263]
[1761828896312,0.43004,108470.0,108460.0,0.08686263]
[1761828896508,0.41004,108470.0,108460.0,0.29729909]
[1761828896708,0.005,108470.0,108460.0,0.29729909]
[1761828897114,0.005,108470.0,108460.0,0.70775992]
[1761828897315,0.005,108470.0,108460.0,0.67461904]
[1761828897817,0.015,108470.0,108460.0,0.67461904]
[1761828898317,0.035,108470.0,108460.0,0.05372175]
[1761828898518,0.015,108470.0,108460.0,0.08686603]
[1761828898722,0.035,108470.0,108460.0,0.08686603]
[1761828900216,0.3958,108470.0,108460.0,0.08686603]
[1761828901010,0.3758,108470.0,108460.0,0.08686603]
[1761828901217,0.035,108470.0,108460.0,0.08686603]
[1761828901614,0.015,108470.0,108460.0,0.08686603]
[1761828901819,0.035,108470.0,108460.0,0.08686603]
[1761828902707,0.485,108470.0,108460.0,0.08686603]
[1761828903420,0.295,108470.0,108460.0,0.08686603]
[1761828904120,0.265,108470.0,108460.0,0.08686603]
[1761828904309,0.075,108470.0,108460.0,0.08686603]
[1761828904514,0.055,108470.0,108460.0,0.29730249]
[1761828904722,0.055,108470.0,108460.0,0.31381904]
[1761828905326,0.055,108470.0,108460.0,0.10338258]
[1761828905618,0.055,108470.0,108460.0,0.46418258]
[1761828906222,0.055,108470.0,108460.0,0.10338258]
[1761828906406,0.075,108470.0,108460.0,0.10338258]
[1761828907012,0.4358,108470.0,108460.0,0.10338258]
[1761828907322,0.055,108470.0,108460.0,0.10338258]
[1761828908919,0.075,108470.0,108460.0,0.10338258]
[1761828909117,0.055,108470.0,108460.0,0.10338258]
[1761828909319,0.075,108470.0,108460.0,0.10338258]
[1761828909525,0.055,108470.0,108460.0,0.10338258]
[1761828910025,0.075,108470.0,108460.0,0.10338258]
[1761828910226,0.9858,108470.0,108460.0,0.10338258]
[1761828910416,0.9858,108470.0,108460.0,0.08689791]
[1761828910723,0.7058,108470.0,108460.0,0.08689791]
[1761828911124,0.7258,108470.0,108460.0,0.08689791]
[1761828911826,0.5458,108470.0,108460.0,0.08689791]
[1761828912024,0.5458,108470.0,108460.0,0.10338258]
[1761828912925,0.185,108470.0,108460.0,0.10338258]
[1761828914125,0.205,108470.0,108460.0,0.10338258]
[1761828914318,0.185,108470.0,108460.0,0.08689813]
[1761828914519,0.185,108470.0,108460.0,0.13655896]
[1761828915121,0.205,108470.0,108460.0,0.13655896]
[1761828915325,0.9358,108470.0,108460.0,0.08689813]
[1761828915524,1.67136537,108470.0,108460.0,0.06493813]
[1761828915822,1.66860537,108470.0,108460.0,0.01048175]
[1761828916024,1.67136537,108470.0,108460.0,0.01048175]
[1761828916320,1.66860537,108470.0,108460.0,0.01048175]
[1761828917321,1.66860537,108470.0,108410.0,0.05698971]
[1761828917322,0.36356,108460.0,108410.0,0.05698971]
[1761828917522,1.07443477,108420.0,108400.0,0.00856741]
[1761828917725,1.03843477,108410.0,108380.0,0.0569]
[1761828917926,0.3608,108390.0,108380.0,0.03471]
[1761828918127,1.22699675,108390.0,108380.0,0.01349]
[1761828918332,1.2256,108390.0,108380.0,0.0569]
[1761828918532,1.2186,108390.0,108380.0,0.0569]
[1761828918728,1.21867005,108390.0,108380.0,0.0569]
[1761828919027,1.21867005,108390.0,108380.0,0.0589]
[1761828919234,1.02867005,108390.0,108380.0,0.0589]
[1761828919424,1.00867005,108390.0,108380.0,0.0589]
[1761828919620,0.37387005,108390.0,108380.0,0.0589]
[1761828920327,0.02007005,108390.0,108380.0,0.4197]
[1761828920722,7.005e-05,108390.0,108380.0,0.77253477]
[1761828921134,7.005e-05,108390.0,108380.0,0.4197]
[1761828921633,7.005e-05,108390.0,108380.0,0.0589]
[1761828922329,0.01007005,108390.0,108380.0,0.0589]
[1761828922731,7.005e-05,108390.0,108380.0,0.86757237]
[1761828922931,0.3608,108420.0,108410.0,0.04341]
[1761828923132,0.68568,108430.0,108420.0,0.0569]
[1761828923432,1.3456506,108430.0,108420.0,0.0569]
[1761828923629,1.3656506,108430.0,108420.0,0.0569]
[1761828923829,1.43765316,108430.0,108420.0,0.0569]
[1761828924137,1.36768256,108430.0,108420.0,0.0569]
[1761828925032,1.37168256,108430.0,108420.0,0.0569]
[1761828925230,1.37768256,108430.0,108420.0,0.03571]
[1761828925432,1.30568,108430.0,108420.0,0.0579]
[1761828925732,0.9508,108430.0,108420.0,0.0579]
[1761828926038,0.55344,108460.0,108440.0,0.0569]
[1761828926039,0.3608,108450.0,108440.0,0.0569]
[1761828926240,0.5108,108450.0,108440.0,0.0569]
[1761828926429,0.58510508,108450.0,108440.0,0.0569]
[1761828926628,0.5108,108450.0,108440.0,0.0569]
[1761828927130,0.15,108450.0,108440.0,0.0569]
[1761828927442,0.15,108450.0,108440.0,0.0579]
[1761828927443,0.155,108450.0,108440.0,0.0579]
[1761828927830,0.163,108450.0,108440.0,0.4197]
[1761828928233,0.163,108450.0,108440.0,0.0589]
[1761828928434,0.163,108450.0,108440.0,1.02246]
[1761828928739,0.163,108450.0,108440.0,1.0197]
[1761828929132,0.013,108450.0,108440.0,1.37529477]
[1761828929340,0.00421667,108490.0,108480.0,0.0569]
[1761828929535,0.02546977,108490.0,108480.0,0.4177]
[1761828929743,0.32488,108520.0,108510.0,0.04341]
[1761828930041,1.06568,108520.0,108510.0,0.04341]
[1761828930236,1.28568,108520.0,108500.0,0.0569]
[1761828930442,0.3608,108510.0,108500.0,0.0569]
[1761828930735,0.7608,108510.0,108500.0,0.01349]
[1761828930940,0.7608,108510.0,108500.0,0.03471]
[1761828931131,0.76990945,108510.0,108500.0,0.03471]
[1761828931327,0.81875834,108510.0,108480.0,0.05843]
[1761828931535,0.68564,108500.0,108480.0,0.05843]
[1761828931733,0.73564,108500.0,108490.0,0.04494]
[1761828931934,0.68564,108500.0,108490.0,0.04494]
[1761828932136,0.37590945,108510.0,108500.0,0.04494]
[1761828932343,0.72074945,108510.0,108500.0,0.05761]
[1761828933338,0.72574945,108510.0,108500.0,0.05761]
[1761828933541,0.71974945,108510.0,108500.0,0.05761]
[1761828933846,0.35894945,108510.0,108500.0,0.05761]
[1761828934340,0.36494945,108510.0,108500.0,0.05761]
[1761828935735,0.04010945,108510.0,108500.0,0.05761]
[1761828935935,0.36486945,108510.0,108500.0,0.05761]
[1761828936241,0.031,108510.0,108500.0,0.77124477]
[1761828936441,0.011,108510.0,108500.0,0.77400477]
[1761828936640,0.011,108510.0,108500.0,0.77124477]
[1761828936840,0.011,108510.0,108500.0,0.77400477]
[1761828938243,0.37012786,108530.0,108520.0,0.05761]
[1761828938546,0.77552,108530.0,108520.0,0.05761]
[1761828938850,0.79552,108530.0,108520.0,0.05761]
[1761828939041,0.96552,108530.0,108520.0,0.05761]
[1761828939238,1.33552,108530.0,108520.0,0.01267]
[1761828939440,1.34252,108530.0,108520.0,0.01367]
[1761828939742,1.34252,108530.0,108520.0,0.05861]
[1761828939743,1.32252,108530.0,108520.0,0.05861]
[1761828939945,1.34252,108530.0,108520.0,0.05861]
[1761828940143,0.69052,108530.0,108520.0,0.05761]
[1761828940344,1.04152,108530.0,108520.0,0.05761]
[1761828940533,1.05054643,108530.0,108520.0,0.05761]
[1761828940740,0.001,108530.0,108520.0,0.77424477]
[1761828940937,0.3608,108550.0,108540.0,0.05761]
[1761828941137,0.3608,108560.0,108550.0,0.04494]
[1761828941337,1.13548,108560.0,108550.0,0.04494]
[1761828942244,0.3608,108570.0,108560.0,0.05761]
[1761828942245,0.00939447,108570.0,108560.0,0.05761]
[1761828942443,0.03939447,108570.0,108560.0,0.05761]
[1761828942646,0.03939447,108570.0,108560.0,1.55761]
[1761828942838,0.03,108570.0,108560.0,1.55761]
[1761828943043,0.03,108570.0,108560.0,1.56037]
[1761828943347,0.68548,108580.0,108570.0,0.04494]
[1761828943548,0.4708,108580.0,108570.0,0.04494]
[1761828943944,0.3808,108580.0,108560.0,1.51467]
[1761828944149,0.3608,108570.0,108560.0,1.51467]
[1761828944447,0.68544,108580.0,108570.0,0.04494]
[1761828944641,1.21624,108580.0,108570.0,0.04594]
[1761828945049,1.21624,108580.0,108570.0,0.001]
[1761828945449,1.3162106,108580.0,108570.0,0.001]
[1761828945651,1.3182106,108580.0,108570.0,0.001]
[1761828945851,1.3182106,108580.0,108570.0,0.04594]
[1761828946047,1.3182106,108580.0,108570.0,0.04494]
[1761828946843,1.3182106,108580.0,108560.0,1.51267]
[1761828947039,0.3608,108570.0,108560.0,1.51267]
[1761828947242,0.3808,108570.0,108560.0,1.51267]
[1761828947544,0.70536,108570.0,108560.0,1.51267]
[1761828948141,0.72536,108570.0,108560.0,1.51267]
[1761828948355,0.95536,108570.0,108560.0,1.51267]
[1761828948551,1.57536,108570.0,108560.0,1.51267]
[1761828948757,1.77536,108570.0,108560.0,1.51267]
[1761828949056,1.46636,108570.0,108560.0,1.51267]
[1761828949348,0.84636,108570.0,108560.0,1.51467]
[1761828949554,0.86636,108570.0,108560.0,1.51467]
[1761828949956,0.84636,108570.0,108560.0,1.51467]
[1761828950340,0.70636,108570.0,108560.0,1.51467]
[1761828950542,1.01636,108570.0,108560.0,1.51467]
[1761828950951,1.06636,108570.0,108560.0,1.51467]
[1761828951250,0.81636,108570.0,108560.0,1.51467]
[1761828952252,0.79636,108570.0,108560.0,1.51467]
[1761828952553,0.81636,108570.0,108560.0,1.51467]
[1761828952963,1.2563306,108570.0,108560.0,0.01467]
[1761828953258,1.2063306,108570.0,108560.0,0.01467]
[1761828953452,1.4963306,108570.0,108560.0,0.002]
[1761828953649,2.33628,108570.0,108560.0,0.002]
[1761828953865,2.69187477,108570.0,108560.0,0.002]
[1761828954051,2.09187477,108570.0,108540.0,1.51267]
[1761828954357,0.3608,108550.0,108540.0,1.51267]
[1761828954553,1.17532,108550.0,108540.0,0.01267]
[1761828955055,1.17532,108550.0,108540.0,1.51267]